bitfinex/quotes_ETHUSD_20260119
["timestamp","ask_amount","ask_price","bid_price","bid_amount"]
[1768866413735,0.98819088,3189.9,3189.7,0.002]
[1768866414628,0.98819088,3189.9,3189.2,0.00080048]
[1768866415037,0.98819088,3189.9,3189.0,0.002]
[1768866415246,0.98819088,3189.5,3189.0,0.002]
[1768866415560,0.98819088,3189.2,3189.0,0.002]
[1768866417538,0.98819088,3189.2,3188.6,0.00080032]
[1768866418358,0.98819088,3189.1,3188.6,0.00080032]
[1768866419441,0.98819088,3189.0,3188.6,0.00080032]
[1768866419777,0.98819088,3188.9,3188.6,0.00080032]
[1768866420355,1.49019088,3189.1,3188.6,0.00080032]
[1768866420540,5.08855353,3189.1,3188.6,0.95096239]
[1768866420738,4.62588995,3189.1,3188.6,0.95096239]
[1768866421371,1.49019088,3189.1,3188.6,0.95096239]
[1768866421668,4.62589127,3189.1,3188.6,0.95096239]
[1768866423545,1.49019088,3189.1,3188.6,0.95096239]
[1768866424039,0.00080048,3189.3,3188.6,0.95096239]
[1768866424240,0.00080048,3189.3,3188.6,4.08712412]
[1768866424444,0.00080048,3189.3,3188.7,0.95016207]
[1768866427472,0.00080048,3189.6,3188.9,0.00080056]
[1768866427652,0.00080048,3189.6,3189.0,0.95016207]
[1768866428054,0.98899136,3189.6,3189.0,0.95016207]
[1768866428643,4.12418529,3189.6,3189.0,0.95016207]
[1768866428844,0.00080048,3189.6,3189.0,0.95016207]
[1768866429045,4.62479059,3190.2,3189.1,0.95016207]
[1768866429370,0.98819088,3190.1,3189.3,0.95016207]
[1768866430240,0.502,3190.2,3189.3,0.95016207]
[1768866430441,1.49019088,3190.2,3189.3,0.95016207]
[1768866431146,0.98819088,3190.1,3189.3,0.95016207]
[1768866431768,0.98819088,3190.1,3189.4,0.95016207]
[1768866431963,0.502,3190.2,3189.4,0.95016207]
[1768866432371,0.98819088,3190.1,3189.4,0.95016207]
[1768866433658,3.1346077,3190.2,3189.4,0.95016207]
[1768866433853,0.98819088,3190.1,3189.2,0.00080056]
[1768866434075,0.98819088,3189.9,3189.2,0.00080056]
[1768866434264,0.98819088,3189.9,3189.2,0.95096263]
[1768866434996,0.98819088,3189.9,3189.2,0.00080056]
[1768866435967,0.98819088,3189.7,3189.2,0.00080056]
[1768866437364,0.98819088,3189.6,3189.2,0.00080056]
[1768866438269,0.98819088,3189.5,3189.2,0.00080056]
[1768866438469,0.502,3190.0,3189.2,0.00080056]
[1768866438470,0.98819088,3190.0,3189.3,0.95016207]
[1768866438685,0.98819088,3190.3,3189.5,0.95016207]
[1768866438885,0.98819088,3190.2,3189.5,0.95016207]
[1768866440367,0.98819088,3190.2,3189.5,3.13527787]
[1768866440567,0.98819088,3190.2,3189.6,0.95016207]
[1768866440978,1.49019088,3190.4,3189.6,0.95016207]
[1768866441182,0.98819088,3190.5,3189.6,0.95016207]
[1768866442180,0.503,3190.6,3189.6,0.95016207]
[1768866442367,3.63722139,3190.6,3189.7,0.95016207]
[1768866442570,4.62541227,3190.6,3189.7,0.95016207]
[1768866443409,0.90577682,3190.5,3189.7,0.95016207]
[1768866443900,0.90577682,3190.5,3189.5,0.92758731]
[1768866444592,0.90577682,3190.3,3189.7,0.92758731]
[1768866446569,0.90577682,3190.3,3189.7,4.0626542]
[1768866447072,0.90577682,3190.3,3189.7,0.92758731]
[1768866448705,0.90577682,3190.3,3189.7,4.06267714]
[1768866449200,0.90577682,3190.3,3189.7,0.92758731]
[1768866452826,0.90577682,3190.3,3189.8,0.002]
[1768866453452,0.90577682,3190.4,3189.8,0.002]
[1768866453605,0.90577682,3190.5,3189.9,0.92758731]
[1768866454337,0.90577682,3190.5,3189.8,0.002]
[1768866456102,0.90577682,3190.3,3189.8,0.002]
[1768866458207,0.90577682,3190.2,3189.8,0.002]
[1768866462023,0.92896995,3190.1,3189.8,0.002]
[1768866463821,0.45665765,3190.1,3189.8,0.002]
[1768866464008,0.92896995,3189.9,3189.2,0.92122556]
[1768866469329,0.503,3190.0,3189.3,0.32973323]
[1768866469535,0.503,3190.0,3189.6,0.920425]
[1768866470204,0.92996995,3190.2,3189.6,0.920425]
[1768866471730,0.92996995,3190.2,3189.7,0.920425]
[1768866471939,0.001,3190.2,3189.7,0.920425]
[1768866473414,0.001,3190.2,3189.8,0.91665301]
[1768866475639,0.001,3190.2,3189.9,0.91665301]
[1768866482053,0.001,3190.2,3190.0,0.91665301]
[1768866482259,0.92097361,3190.5,3190.0,0.91665301]
[1768866482439,0.001,3190.6,3190.0,0.91665301]
[1768866483042,0.92097361,3190.5,3189.9,0.493]
[1768866483442,0.92097361,3190.5,3190.0,0.91665301]
[1768866485782,0.001,3190.6,3190.1,0.91665301]
[1768866487058,0.92097361,3191.2,3190.4,0.91665301]
[1768866487567,1.42397361,3191.2,3190.4,0.91665301]
[1768866487768,1.42397361,3191.2,3190.6,0.91665301]
[1768866489976,0.00080128,3191.4,3190.7,0.91665301]
[1768866489977,0.92177489,3191.4,3190.7,0.91665301]
[1768866490839,0.92097361,3191.3,3190.7,0.91665301]
[1768866492081,0.92097361,3191.3,3190.8,0.91665301]
[1768866492254,0.00080128,3191.4,3190.8,0.91665301]
[1768866492457,0.92177489,3191.4,3190.8,0.91665301]
[1768866493407,0.92097361,3191.6,3191.0,0.91665301]
[1768866493691,0.0008016,3191.7,3191.3,0.91665301]
[1768866494270,0.0008016,3191.7,3191.6,0.02593321]
[1768866495583,0.92177521,3191.7,3191.6,0.02593321]
[1768866495963,0.0008016,3191.7,3191.6,0.94258622]
[1768866496167,0.001,3191.9,3191.6,0.94258622]
[1768866497203,0.92097361,3192.4,3191.7,0.91665301]
[1768866498405,0.92097361,3192.4,3191.8,0.91665301]
[1768866498621,0.503,3192.5,3191.8,0.91665301]
[1768866498763,0.503,3192.5,3192.0,0.91665301]
[1768866499593,0.92177473,3192.6,3192.0,0.91665301]
[1768866499594,0.00080112,3192.6,3192.0,0.91665301]
[1768866500009,0.92177473,3192.6,3192.0,0.91665301]
[1768866500167,0.92097361,3192.5,3192.0,0.91665301]
[1768866501180,0.00080112,3192.6,3192.0,0.91665301]
[1768866501925,0.92177473,3192.6,3192.0,0.91665301]
[1768866502107,0.92177473,3192.6,3192.1,0.91665301]
[1768866502108,0.00080112,3192.6,3192.1,0.91665301]
[1768866502589,0.00080112,3192.6,3192.2,0.91665301]
[1768866503577,0.001,3192.7,3192.2,0.94267702]
[1768866503779,0.001,3192.7,3192.2,0.94347822]
[1768866504385,0.001,3192.7,3192.4,0.94267702]
[1768866504585,0.91971815,3193.0,3192.4,0.94267702]
[1768866505192,0.00080184,3193.0,3192.4,0.94267702]
[1768866505809,0.91891631,3192.9,3192.2,0.0008012]
[1768866506014,0.91891631,3192.7,3192.2,0.0008012]
[1768866506717,0.71834291,3192.8,3192.3,0.94267702]
[1768866506911,0.91891631,3192.9,3192.3,0.94267702]
[1768866507108,0.00080184,3193.0,3192.3,0.94267702]
[1768866507527,0.91971815,3193.0,3192.3,0.94267702]
[1768866508243,0.91891631,3192.9,3192.3,0.94267702]
[1768866508412,0.91891631,3192.9,3192.2,1.43647822]
[1768866508600,0.91891631,3192.7,3192.2,1.43647822]
[1768866508797,0.91891631,3192.7,3192.2,0.0008012]
[1768866512229,0.91891631,3192.7,3192.3,0.002]
[1768866512536,0.91991631,3192.4,3192.3,0.002]
[1768866512927,0.91991631,3192.4,3192.2,0.0008012]
[1768866517709,0.91891631,3192.3,3192.2,0.0008012]
[1768866518845,0.001,3192.4,3192.2,0.0008012]
[1768866521253,0.91991631,3192.4,3192.2,0.0008012]
[1768866523634,0.001,3192.4,3192.2,0.0008012]
[1768866524868,0.001,3192.4,3192.1,0.91426444]
[1768866524869,0.95359505,3192.4,3192.0,0.002]
[1768866525038,0.95359505,3192.4,3191.5,0.91426444]
[1768866525039,0.95259505,3192.1,3191.5,0.91426444]
[1768866525831,0.95259505,3192.1,3191.3,0.91506612]
[1768866526043,0.95259505,3192.1,3191.3,1.40906612]
[1768866526700,0.95259505,3191.9,3191.4,0.91426444]
[1768866527909,0.95259505,3191.9,3191.3,0.00080168]
[1768866528562,0.95259505,3191.7,3191.3,0.00080168]
[1768866528769,0.95259505,3191.5,3191.0,0.00080136]
[1768866529772,0.95259505,3191.5,3191.0,0.9150658]
[1768866529971,0.95339673,3191.7,3191.0,0.9150658]
[1768866530977,3.13398268,3191.7,3191.0,0.9150658]
[1768866531177,0.95259505,3191.6,3191.0,0.9150658]
[1768866532309,1.36125282,3191.6,3191.0,0.9150658]
[1768866533001,0.90674728,3191.5,3191.0,0.9150658]
[1768866533370,0.90674728,3191.4,3191.0,0.00080136]
[1768866534376,0.90674728,3191.4,3191.0,0.92151465]
[1768866534710,1.31540505,3191.6,3191.1,0.92071329]
[1768866536176,1.31540505,3191.6,3191.3,0.002]
[1768866536381,0.001,3191.4,3191.3,0.002]
[1768866536605,0.90774728,3191.4,3190.3,0.002]
[1768866536788,0.90774728,3191.4,3189.5,0.92071329]
[1768866536789,0.90674728,3190.3,3189.7,0.92071329]
[1768866536989,0.90674728,3190.3,3189.7,0.92271329]
[1768866537313,4.04125867,3190.3,3189.7,0.92271329]
[1768866537686,0.90674728,3190.3,3189.7,0.92271329]
[1768866538516,1.40974728,3191.1,3190.2,0.92071329]
[1768866538691,1.40974728,3191.1,3190.4,0.92071329]
[1768866538692,0.90674728,3191.0,3190.4,0.92071329]
[1768866539094,0.503,3191.1,3190.4,0.92071329]
[1768866539281,3.13381385,3191.0,3190.4,0.92071329]
[1768866539481,3.90153348,3191.0,3190.4,0.92071329]
[1768866541180,0.76771963,3191.0,3190.4,0.92071329]
[1768866541382,0.503,3191.1,3190.4,0.92071329]
[1768866541610,3.63676564,3191.1,3190.4,0.92071329]
[1768866541814,0.503,3191.1,3190.4,0.92071329]
[1768866542223,0.90854864,3191.4,3190.5,0.92071329]
[1768866542426,0.00180136,3191.4,3190.7,0.92071329]
[1768866542625,0.00180136,3191.4,3190.4,0.92071329]
[1768866542626,0.90674728,3191.3,3190.4,0.92071329]
[1768866542910,0.90854864,3191.4,3190.5,0.92071329]
[1768866543227,3.13525114,3191.4,3190.5,0.92071329]
[1768866543424,0.00180136,3191.4,3190.7,0.92071329]
[1768866546837,3.13522242,3191.4,3190.7,0.92071329]
[1768866547133,4.0419697,3191.4,3190.7,0.92071329]
[1768866548227,3.13522242,3191.4,3190.7,0.92071329]
[1768866548427,0.00180136,3191.4,3190.7,0.92071329]
[1768866548730,0.00180136,3191.4,3190.6,3.13419292]
[1768866548731,0.00180136,3191.4,3191.0,0.92271329]
[1768866548929,0.71932254,3191.4,3191.0,0.92271329]
[1768866549239,3.85277833,3191.4,3191.0,0.92271329]
[1768866549920,4.75952561,3191.4,3191.0,0.002]
[1768866550119,4.7595125,3191.4,3191.0,0.002]
[1768866551132,1.62606982,3191.4,3191.0,0.002]
[1768866552052,4.04199195,3191.4,3191.0,0.002]
[1768866552551,0.90854864,3191.4,3191.0,0.002]
[1768866552944,4.04197471,3191.4,3191.0,0.002]
[1768866553449,0.90854864,3191.4,3191.0,0.002]
[1768866553834,4.04197138,3191.4,3191.0,0.002]
[1768866555561,4.04030368,3191.3,3191.0,0.002]
[1768866555759,4.04030368,3191.3,3190.6,0.002]
[1768866555760,0.90674728,3191.2,3190.6,0.002]
[1768866555918,0.90674728,3191.2,3190.1,0.92071329]
[1768866557868,6.26743128,3191.1,3190.1,0.92071329]
[1768866558189,0.90674728,3191.0,3190.1,0.92071329]
[1768866558356,0.90674728,3191.0,3190.0,0.494]
[1768866558669,0.90674728,3190.8,3190.0,1.41471329]
[1768866558845,0.90674728,3190.8,3190.0,0.92071329]
[1768866560146,0.90674728,3190.6,3190.0,0.92071329]
[1768866560457,0.90674728,3190.6,3189.8,3.62897288]
[1768866560458,0.90674728,3190.6,3189.8,4.05568617]
[1768866560662,0.90674728,3190.6,3189.8,0.92071329]
[1768866560861,0.90674728,3190.4,3189.8,0.92071329]
[1768866561235,0.90674728,3190.6,3190.0,0.92071329]
[1768866561570,0.90674728,3190.7,3190.0,0.92071329]
[1768866562273,3.85133829,3190.9,3190.0,0.92071329]
[1768866562274,3.8513698,3190.9,3190.0,0.92071329]
[1768866562454,0.90674728,3190.8,3190.0,0.92071329]
[1768866563576,1.74624181,3190.8,3190.0,0.92071329]
[1768866564005,0.001,3191.1,3190.1,0.95134822]
[1768866564154,0.9974465,3191.1,3190.1,0.95134822]
[1768866564349,4.13117609,3191.1,3190.3,0.95134822]
[1768866564956,6.26845918,3191.1,3190.3,0.95134822]
[1768866565169,1.62329242,3191.0,3190.3,0.95134822]
[1768866566486,4.75715454,3191.0,3190.3,0.95134822]
[1768866567290,4.75710662,3191.0,3190.3,0.95134822]
[1768866570489,0.9964465,3190.9,3190.3,0.494]
[1768866570694,0.9964465,3190.9,3189.2,0.00080056]
[1768866570695,0.9964465,3190.9,3190.2,0.494]
[1768866570889,0.9964465,3190.7,3190.2,0.494]
[1768866571274,0.78909208,3190.8,3190.3,0.95134822]
[1768866572093,1.78553858,3190.8,3190.3,0.95134822]
[1768866573098,4.9195724,3190.8,3190.3,0.95134822]
[1768866573398,4.9195724,3190.8,3190.3,0.95334822]
[1768866574591,1.78553858,3190.8,3190.3,0.95334822]
[1768866574963,0.9964465,3190.8,3190.3,0.95334822]
[1768866575387,4.75715437,3191.0,3190.3,0.95334822]
[1768866575575,0.9964465,3190.9,3190.3,0.95334822]
[1768866576393,3.13386195,3191.0,3190.3,0.95334822]
[1768866576697,0.001,3191.1,3190.3,0.95334822]
[1768866576863,0.9964465,3191.0,3190.3,0.95334822]
[1768866579184,0.9964465,3190.8,3190.3,0.496]
[1768866579586,0.9964465,3190.8,3190.3,1.44734822]
[1768866580205,0.9964465,3190.8,3190.3,0.496]
[1768866580403,0.9964465,3190.8,3190.4,0.95134822]
[1768866585204,0.9964465,3190.8,3190.6,0.002]
[1768866585404,4.13047522,3190.8,3190.6,0.002]
[1768866585701,0.9384872,3190.6,3190.3,0.002]
[1768866588409,0.9384872,3190.7,3190.3,0.93442951]
[1768866588580,0.9384872,3191.0,3190.3,0.93442951]
[1768866590787,3.13391206,3190.9,3190.3,0.93442951]
[1768866590999,1.56526674,3190.8,3190.3,0.93442951]
[1768866591195,0.9384872,3190.7,3190.3,0.93442951]
[1768866591515,0.9384872,3190.9,3190.3,0.93442951]
[1768866591715,3.1338609,3191.0,3190.3,0.93442951]
[1768866592026,4.0723481,3191.0,3190.3,0.93442951]
[1768866592320,4.79305273,3191.0,3190.3,0.93442951]
[1768866593789,1.65919183,3191.0,3190.3,0.93442951]
[1768866594425,4.07232905,3191.0,3190.3,0.93442951]
[1768866594728,4.0646475,3191.1,3190.5,0.92637891]
[1768866595493,0.92989497,3191.0,3190.5,0.92637891]
[1768866596834,0.92989497,3191.0,3190.6,0.92837891]
[1768866597145,0.001,3190.7,3190.6,0.92837891]
[1768866597899,0.001,3191.1,3190.6,1.13714946]
[1768866598125,0.00180136,3191.4,3190.9,0.92637891]
[1768866602626,0.00080168,3191.7,3191.0,0.92637891]
[1768866602827,0.00080168,3191.7,3191.2,0.92637891]
[1768866603055,0.509,3191.5,3191.1,0.92637891]
[1768866603261,0.92989497,3191.4,3191.1,0.495]
[1768866603436,0.509,3191.5,3191.1,1.42137891]
[1768866603636,0.00080168,3191.7,3191.2,0.92637891]
[1768866606835,0.00080104,3192.0,3191.4,0.92637891]
[1768866607023,0.00080104,3192.0,3191.6,0.92637891]
[1768866607455,0.00080104,3192.3,3191.7,0.92637891]
[1768866607645,0.00080104,3192.3,3191.9,0.92637891]
[1768866609048,0.00080104,3192.3,3191.7,0.92637891]
[1768866609250,0.00080104,3192.3,3191.8,0.92637891]
[1768866609568,0.00080104,3192.3,3192.0,0.92637891]
[1768866616155,0.00080104,3192.3,3192.0,0.495]
[1768866616470,0.00080104,3192.3,3192.1,0.92637891]
[1768866616780,0.001,3192.4,3192.1,0.92637891]
[1768866620250,0.93089497,3192.4,3192.0,0.495]
[1768866620455,0.92989497,3191.6,3190.9,0.92637891]
[1768866620658,0.34992109,3191.9,3191.3,0.00080184]
[1768866620869,0.34992109,3191.8,3191.3,0.00080184]
[1768866621294,0.00180112,3192.0,3191.4,0.92637891]
[1768866621483,0.00080112,3192.3,3191.8,0.92637891]
[1768866621785,0.001,3192.4,3192.0,0.92637891]
[1768866622681,0.41467077,3192.3,3192.0,0.92637891]
[1768866625460,0.41467077,3192.3,3192.1,0.98338928]
[1768866625661,0.0008012,3192.6,3192.1,0.98338928]
[1768866626413,0.0008012,3192.6,3192.4,0.98338928]
[1768866627062,0.00080184,3193.0,3192.5,0.98338928]
[1768866630393,0.91999541,3193.0,3192.3,0.02871977]
[1768866630564,0.91919357,3192.9,3192.3,0.02871977]
[1768866630764,0.91919357,3192.7,3192.3,0.02871977]
[1768866631965,3.13274116,3193.0,3192.3,1.01210905]
[1768866631966,0.00080184,3193.0,3192.3,1.01210905]
[1768866632172,3.13266545,3193.0,3192.5,0.98338928]
[1768866632373,0.91919357,3192.9,3192.3,1.01210905]
[1768866632686,0.91919357,3192.9,3192.3,0.02871977]
[1768866632892,0.001,3192.4,3192.3,0.02871977]
[1768866633095,0.92019357,3192.4,3192.3,0.02871977]
[1768866633793,0.92019357,3192.4,3192.2,0.00080128]
[1768866633963,0.92019357,3192.4,3191.9,0.4958012]
[1768866634594,0.92019357,3192.4,3191.6,0.0008012]
[1768866634891,0.91919357,3192.1,3191.6,0.0008012]
[1768866635097,0.91919357,3191.9,3191.6,0.0008012]
[1768866635300,0.91919357,3191.9,3191.3,0.00080184]
[1768866636598,0.91919357,3191.7,3191.3,0.00080184]
[1768866638599,4.05232193,3191.7,3191.3,0.00080184]
[1768866638779,0.91919357,3191.6,3191.3,0.00080184]
[1768866639722,0.504,3191.9,3191.3,0.98419112]
[1768866643507,0.504,3191.9,3191.4,0.95204536]
[1768866643879,0.91999477,3192.0,3191.4,0.95204536]
[1768866644205,0.91999477,3192.0,3191.6,0.002]
[1768866645905,0.0008012,3192.0,3191.6,0.95404536]
[1768866646078,0.96536577,3191.9,3191.6,0.002]
[1768866646807,0.96536577,3191.9,3191.4,0.95204536]
[1768866647003,0.96536577,3191.9,3191.3,0.00280184]
[1768866648221,0.96536577,3191.9,3191.3,0.9548472]
[1768866649110,4.09830928,3191.9,3191.3,0.9548472]
[1768866649308,4.82150649,3191.9,3191.3,0.9548472]
[1768866649478,0.96536577,3191.8,3191.3,0.9548472]
[1768866652695,4.09839926,3191.8,3191.3,0.9548472]
[1768866654011,3.13303349,3191.8,3191.3,0.00280184]
[1768866654215,0.997371,3191.7,3191.3,0.00280184]
[1768866656019,0.997371,3191.4,3191.0,0.00080144]
[1768866656191,0.99817244,3191.4,3190.6,0.002]
[1768866656515,0.997371,3191.3,3190.6,0.002]
[1768866658203,0.50480144,3191.4,3190.6,0.002]
[1768866658204,0.997371,3191.1,3190.6,0.002]
[1768866658422,0.72646059,3191.0,3190.6,0.002]
[1768866658925,1.72383159,3191.0,3190.6,0.002]
[1768866659425,3.13391206,3190.9,3190.6,0.002]
[1768866659839,4.13123098,3191.0,3190.6,0.002]
[1768866661530,0.997371,3191.0,3190.6,0.92510392]
[1768866661830,4.13119037,3191.0,3190.6,0.92510392]
[1768866663402,0.997371,3191.0,3190.6,0.92510392]
[1768866663941,4.13120229,3191.0,3190.6,0.92510392]
[1768866664622,4.85768495,3191.0,3190.6,0.92510392]
[1768866665495,0.72648266,3191.0,3190.6,0.92510392]
[1768866665717,4.13108664,3191.1,3190.6,0.92510392]
[1768866666230,0.997371,3191.3,3190.6,0.92510392]
[1768866666899,3.6382236,3191.4,3190.6,0.92510392]
[1768866667295,0.997371,3191.3,3190.6,0.92510392]
[1768866667529,0.997371,3190.9,3190.3,0.002]
[1768866668304,0.997371,3190.9,3190.3,0.92510392]
[1768866668500,0.997371,3190.9,3190.5,0.002]
[1768866668701,0.997371,3190.5,3190.0,0.002]
[1768866669002,5.89629904,3190.6,3189.7,0.8830015]
[1768866669003,0.997371,3190.2,3189.7,0.8830015]
[1768866670339,0.997371,3190.4,3189.8,0.8810015]
[1768866671627,0.997371,3190.3,3189.8,0.8810015]
[1768866673051,0.997371,3190.3,3189.7,0.002]
[1768866673261,0.997371,3190.3,3189.4,0.497]
[1768866673262,0.997371,3190.3,3189.4,0.002]
[1768866673263,0.997371,3190.2,3189.4,0.002]
[1768866673615,0.997371,3190.1,3189.4,0.002]
[1768866675614,0.997371,3190.0,3189.4,0.002]
[1768866679344,0.997371,3189.9,3189.4,0.002]
[1768866679948,0.997371,3189.4,3189.0,0.002]
[1768866680263,0.99817156,3189.3,3188.7,0.002]
[1768866682753,0.997371,3189.2,3188.7,0.002]
[1768866683658,0.9502988,3188.9,3188.4,0.002]
[1768866684017,0.9502988,3188.8,3188.4,0.002]
[1768866684853,0.9502988,3188.7,3188.4,0.002]
[1768866686337,0.9502988,3188.7,3188.0,0.00280048]
[1768866686338,0.9502988,3188.6,3188.0,0.00280048]
[1768866689132,0.9502988,3188.3,3187.7,0.002]
[1768866689957,0.9502988,3188.3,3187.7,3.13903926]
[1768866690254,0.9502988,3188.3,3187.7,3.14383974]
[1768866691850,0.9502988,3188.3,3187.7,0.00680048]
[1768866692456,0.9502988,3188.3,3187.7,3.14385524]
[1768866693666,0.9502988,3188.3,3188.0,0.002]
[1768866697864,0.9502988,3188.3,3187.4,0.01280048]
[1768866698081,0.9502988,3188.1,3187.4,0.01280048]
[1768866698238,0.9502988,3188.1,3187.4,0.002]
[1768866698439,6.81005108,3188.2,3186.8,0.01080048]
[1768866698440,0.9502988,3187.8,3186.8,0.01080048]
[1768866698642,0.9502988,3187.8,3186.7,0.496]
[1768866699342,5.89629904,3187.9,3186.6,3.14889105]
[1768866699343,0.505,3187.7,3186.6,3.14889105]
[1768866699544,0.9502988,3187.6,3186.7,3.13804199]
[1768866699942,0.9502988,3187.6,3186.6,0.496]
[1768866700139,0.9502988,3187.6,3186.4,0.002]
[1768866700140,0.9502988,3187.5,3186.4,0.002]
[1768866700368,0.9502988,3187.3,3186.4,0.002]
[1768866700750,0.9502988,3187.1,3186.4,0.002]
[1768866703563,0.9502988,3187.1,3186.4,0.01480048]
[1768866703766,0.30673637,3188.4,3186.7,0.01280048]
[1768866703767,0.90237747,3187.7,3186.7,0.01280048]
[1768866704049,0.90237747,3187.7,3186.5,6.77247888]
[1768866704050,0.90237747,3188.3,3187.4,0.01280048]
[1768866704252,0.90237747,3188.3,3187.7,0.01280048]
[1768866704450,0.00080048,3188.4,3187.7,0.01280048]
[1768866705168,0.00080048,3188.7,3188.1,0.012]
[1768866705851,0.00080048,3188.7,3188.2,0.012]
[1768866706049,0.00080048,3188.7,3188.0,0.00080056]
[1768866706050,0.90237747,3188.6,3188.0,0.00080056]
[1768866706966,0.90237747,3188.3,3187.4,0.496]
[1768866707386,0.90237747,3188.3,3187.2,0.496]
[1768866707582,0.90237747,3188.3,3187.4,3.13731876]
[1768866707755,0.90237747,3188.3,3187.3,3.13740993]
[1768866707956,0.90237747,3188.3,3187.3,3.13745176]
[1768866709167,0.90237747,3188.3,3187.3,6.27490352]
[1768866709484,0.90237747,3188.3,3187.4,0.01280056]
[1768866710986,0.00080056,3188.4,3187.4,0.01280056]
[1768866711190,0.00080056,3188.4,3187.6,0.01280056]
[1768866711692,0.90317803,3188.4,3187.6,0.01280056]
[1768866713391,0.90317803,3188.4,3187.7,3.63305806]
[1768866713574,0.90317803,3188.4,3187.7,3.64585862]
[1768866714071,0.90317803,3188.4,3187.7,0.496]
[1768866714275,0.90317803,3188.4,3187.5,0.496]
[1768866715261,0.90317803,3188.4,3187.5,3.63321641]
[1768866716201,0.93067704,3188.3,3187.5,0.496]
[1768866716366,0.93067704,3188.3,3187.4,0.496]
[1768866716566,0.93067704,3188.2,3187.4,0.496]
[1768866716999,0.93067704,3188.2,3187.5,3.13723825]
[1768866717596,0.93067704,3188.2,3187.5,3.15003881]
[1768866718103,0.93067704,3188.2,3187.7,0.002]
[1768866718290,0.001,3188.1,3187.7,0.002]
[1768866719176,0.001,3188.1,3187.7,0.01480056]
[1768866719867,0.001,3188.1,3187.7,3.15185499]
[1768866720097,0.001,3188.1,3187.8,0.01280056]
[1768866720601,0.001,3188.1,3187.7,0.002]
[1768866720966,0.93167704,3188.1,3187.7,0.002]
[1768866721597,0.001,3188.1,3187.7,0.002]
[1768866721799,0.93067704,3188.0,3187.7,0.002]
[1768866725401,0.93067704,3188.0,3187.4,0.002]
[1768866725782,0.93067704,3187.8,3187.4,0.002]
[1768866726536,0.93067704,3187.8,3186.7,0.002]
[1768866727976,3.13705806,3187.7,3186.7,0.002]
[1768866728177,0.93067704,3187.6,3186.7,0.002]
[1768866728378,0.93067704,3187.4,3186.7,0.002]
[1768866728983,3.13702627,3187.8,3186.8,0.01480056]
[1768866728984,0.93067704,3187.8,3186.8,0.01480056]
[1768866730012,3.13705806,3187.7,3186.8,0.01480056]
[1768866730198,0.93067704,3187.6,3187.1,0.002]
[1768866731806,0.93067704,3187.6,3187.1,0.01680056]
[1768866732827,0.93067704,3187.6,3187.1,3.15439082]
[1768866733404,0.93067704,3187.6,3187.1,0.01680056]
[1768866734122,0.93067704,3187.6,3187.1,0.002]
[1768866736401,0.93067704,3187.5,3187.1,0.002]
[1768866736929,0.93067704,3187.9,3187.1,0.002]
[1768866737124,0.93067704,3187.8,3187.1,0.002]
[1768866737495,0.93067704,3187.8,3187.1,0.01680056]
[1768866739134,0.93067704,3187.8,3187.1,3.15439216]
[1768866739306,0.93067704,3187.8,3187.2,0.01480056]
[1768866739703,0.93067704,3187.7,3187.1,0.002]
[1768866740029,0.93067704,3187.5,3187.1,0.002]
[1768866740742,0.93067704,3187.5,3186.8,0.002]
[1768866741520,0.93067704,3187.4,3186.8,0.002]
[1768866743137,0.93067704,3187.4,3187.0,0.002]
[1768866743540,0.95251463,3187.2,3187.0,0.002]
[1768866743927,0.001,3187.7,3187.0,0.01880056]
[1768866744621,0.95351463,3187.7,3187.0,0.01880056]
[1768866745340,0.95351463,3187.7,3187.1,3.13764864]
[1768866745512,0.95351463,3187.7,3187.1,3.1544492]
[1768866748546,0.95351463,3187.7,3187.1,6.29209784]
[1768866748723,0.95351463,3187.7,3187.1,0.01680056]
[1768866748919,0.95351463,3187.7,3187.0,0.002]
[1768866752344,0.95251463,3187.6,3187.0,0.002]
[1768866752548,0.95251463,3187.5,3187.0,0.002]
[1768866752858,0.95251463,3187.5,3186.8,0.002]
[1768866754448,0.95251463,3187.3,3186.8,0.002]
[1768866754649,0.95251463,3187.1,3186.8,0.002]
[1768866755147,0.95251463,3187.1,3186.7,0.002]
[1768866755148,0.95251463,3187.1,3186.4,0.002]
[1768866755816,0.95251463,3187.0,3186.4,0.002]
[1768866756326,0.95251463,3186.8,3186.4,0.002]
[1768866756526,0.40903602,3186.7,3186.4,0.002]
[1768866756738,0.95251463,3186.8,3186.4,0.002]
[1768866758137,1.45751463,3187.0,3186.4,0.002]
[1768866758520,0.95251463,3186.9,3186.4,0.002]
[1768866761482,0.93705419,3186.8,3186.1,0.002]
[1768866762730,0.93705419,3186.7,3186.1,0.002]
[1768866762942,0.93705419,3186.5,3186.1,0.002]
[1768866764547,0.93705419,3186.5,3185.8,0.002]
[1768866764747,0.93705419,3186.4,3185.8,0.002]
[1768866765437,0.93705419,3186.4,3185.8,0.02480056]
[1768866767257,0.93705419,3186.3,3186.0,0.002]
[1768866767554,0.93705419,3186.2,3186.0,0.002]
[1768866779877,0.93705419,3186.2,3185.5,0.02480056]
[1768866779878,0.9716981,3186.0,3185.5,0.002]
[1768866782036,0.9716981,3186.4,3185.5,0.02680056]
[1768866782328,0.9716981,3186.4,3185.6,0.02480056]
[1768866782329,0.9716981,3186.3,3185.6,0.02480056]
[1768866784029,0.9716981,3186.3,3185.8,0.02480056]
[1768866787298,0.9716981,3186.3,3185.5,0.002]
[1768866787492,0.9716981,3186.2,3185.5,0.002]
[1768866787692,0.9716981,3186.0,3185.5,0.002]
[1768866788215,0.9716981,3185.9,3185.5,0.002]
[1768866789938,0.9716981,3185.9,3185.1,0.002]
[1768866789939,0.9716981,3185.8,3185.1,0.002]
[1768866790100,0.9716981,3185.6,3185.1,0.002]
[1768866790434,0.9716981,3185.5,3185.1,0.002]
[1768866791711,0.001,3186.0,3185.3,0.02480056]
[1768866792110,0.9726981,3186.0,3185.4,0.02480056]
[1768866792341,1.38283799,3185.9,3185.4,0.02480056]
[1768866792537,0.9716981,3185.8,3185.2,0.02480056]
[1768866792751,0.9716981,3185.8,3185.2,0.497]
[1768866792949,0.9716981,3185.8,3185.2,3.63648216]
[1768866793137,0.9716981,3185.8,3185.2,3.66128272]
[1768866793757,0.9716981,3185.8,3185.2,0.02480056]
[1768866793958,0.9716981,3185.8,3185.1,0.002]
[1768866794163,0.9716981,3185.6,3185.1,0.002]
[1768866795555,0.9716981,3185.9,3185.1,0.02680056]
[1768866795912,0.506,3186.0,3185.2,5.91352683]
[1768866796126,0.506,3186.0,3185.3,0.02480056]